Cogmind - Beta 12 *** ADVENTURER MODE // 2023.08.07 @ 18:02:55 Player: Rudolf Result: Destroyed by H-77 Assassin with Coil Gun Performance ------------- Evolutions (6) 3000 Regions Visited (22) 4400 Robots Destroyed (49) 245 Value Destroyed (1392) 1392 Prototype IDs (20) 400 Alien Tech Used (0) 0 Bonus (913) 913 TOTAL SCORE: 10350 Bonus ------- High Alert Combat Kills 39 Follower Combat Kills 74 Network Hubs Disabled 200 Met Data Miner 300 Met Imprinter 300 Cogmind --------- Core Integrity 0/1150 Matter 29/300 Energy 99/100 System Corruption 8% Temperature Cool (0) Movement Core (50) Location -4/Hub_04(d) Parts ------- > --- POWER (1) -------- (None) > --- PROPULSION (7) --- (None) > --- UTILITY (9) ------ Advanced Signal Interpreter Advanced Hacking Suite > --- WEAPON (2) ------- (None) > --- INVENTORY (5) ---- HERF Cannon Heavy Flak Cannon Peak State ------------ > --- POWER ------------ Micro Fission Core > --- PROPULSION ------- Cooled Gravmag System Impulse Thruster Cooled Field Propulsion Drive > --- UTILITY ---------- Advanced Cryofiber Web Advanced Coolant Injector Advanced Sensor Array Advanced Reaction Control System Graphene Brace Advanced Hacking Suite Improved System Shield > --- WEAPON ----------- Enhanced Nova Cannon > --- INVENTORY -------- Light Nuclear Core Reaction Control System Improved Thermal Shield HERF Cannon Heavy Flak Cannon [Rating: 83] Favorites ----------- Power Light Nuclear Core Engine Ion Engine Power Core Light Nuclear Core Propulsion VTOL Module Treads Improved Medium Treads Leg Aluminum Leg Wheel Centrium Wheel Hover Unit Improved Hover Unit Flight Unit VTOL Module Utility Improved Signal Interpreter Device Heat Sink Storage Cargo Storage Unit Processor Improved Signal Interpreter Hackware Improved System Shield Protection Light Armor Plating Weapon Gatling Laser Energy Gun Gatling Laser Energy Cannon Heavy Particle Cannon Ballistic Gun Light Assault Rifle Ballistic Cannon Flak Cannon Launcher Proton Missile Launcher Special Weapon Enhanced Flamer Impact Weapon Flail Slashing Weapon Scythe Build | -11 -10 -9 -9 -8 -7 -7 -7 -7 -6 -6 -6 -6 -6 -5 -5 -4 -4 -4 -4 -4 -4 -4 ------- Run | Jun Mat Mat Min Mat Fac Low Low Dat Pro Fac Low Low Zio Pro Fac Fac Was Fac Ext Cet Arc Hub Slots Evolved 12 | . . 2 . 2 2 . . . . 2 . . . . 2 2 . . . . . . Power . | . . . . . . . . . . . . . . . . . . . . . . . Propulsion 5 | . . 1 . 1 1 . . . . 1 . . . . 1 . . . . . . . Utility 7 | . . 1 . 1 1 . . . . 1 . . . . 1 2 . . . . . . Weapon . | . . . . . . . . . . . . . . . . . . . . . . . Parts Attached 122 | 5 2 13 3 26 15 4 3 . 2 8 1 1 5 5 5 11 2 3 6 . . 2 Power 15 | 1 . 1 . 4 3 . 1 . . . . . 3 . 1 . . . 1 . . . Engine 8 | 1 . . . 4 3 . . . . . . . . . . . . . . . . . Core 7 | . . 1 . . . . 1 . . . . . 3 . 1 . . . 1 . . . Reactor . | . . . . . . . . . . . . . . . . . . . . . . . Propulsion 37 | 2 . 3 2 10 1 . 1 . . 5 1 . 2 2 2 2 . 1 2 . . 1 Treads 2 | . . . . . . . . . . 1 . . . . 1 . . . . . . . Leg 3 | 2 . . . 1 . . . . . . . . . . . . . . . . . . Wheel 2 | . . . . 1 . . . . . . . . . . . . . 1 . . . . Hover 5 | . . 3 . 1 . . . . . . . . . . 1 . . . . . . . Flight 25 | . . . 2 7 1 . 1 . . 4 1 . 2 2 . 2 . . 2 . . 1 Utility 36 | . 2 3 . 6 5 1 1 . 2 1 . . . 1 1 7 1 2 2 . . 1 Device 16 | . . 1 . 1 . . 1 . . . . . . 1 1 6 1 1 2 . . 1 Storage 1 | . . 1 . . . . . . . . . . . . . . . . . . . . Processor 8 | . 1 . . 1 4 . . . 1 . . . . . . . . 1 . . . . Hackware 4 | . . . . . . 1 . . 1 1 . . . . . 1 . . . . . . Protection 7 | . 1 1 . 4 1 . . . . . . . . . . . . . . . . . Artifact . | . . . . . . . . . . . . . . . . . . . . . . . Weapon 34 | 2 . 6 1 6 6 3 . . . 2 . 1 . 2 1 2 1 . 1 . . . Energy Gun 11 | . . 4 1 2 3 . . . . . . 1 . . . . . . . . . . Energy Cannon 6 | . . . . . 1 2 . . . . . . . . . 1 1 . 1 . . . Ballistic Gun 7 | 2 . 2 . 1 . . . . . 1 . . . 1 . . . . . . . . Ballistic Cannon 4 | . . . . 3 . . . . . . . . . . . 1 . . . . . . Launcher 3 | . . . . . 1 . . . . 1 . . . 1 . . . . . . . . Special Weapon 1 | . . . . . . 1 . . . . . . . . . . . . . . . . Impact Weapon 1 | . . . . . . . . . . . . . . . 1 . . . . . . . Slashing Weapon 1 | . . . . . 1 . . . . . . . . . . . . . . . . . Piercing Weapon . | . . . . . . . . . . . . . . . . . . . . . . . Special Melee Weapon . | . . . . . . . . . . . . . . . . . . . . . . . Unidentified Prototypes 9 | . . 2 . 1 1 . . . . . . . . 2 1 2 . . . . . . Parts Lost 53 | . . . 10 3 3 4 . . 1 . 1 . . 16 . . 3 2 5 2 . 3 Power 5 | . . . 1 . 1 . . . . . . . . 1 . . . 1 . 1 . . Propulsion 23 | . . . 5 2 . 3 . . . . . . . 8 . . 1 . 2 . . 2 Utility 19 | . . . 2 1 2 . . . . . . . . 6 . . 2 1 3 1 . 1 Weapon 6 | . . . 2 . . 1 . . 1 . 1 . . 1 . . . . . . . . Highest Loss Streak 13 | . . . 10 1 2 4 . . 1 . 1 . . 13 . . 3 5 5 1 . 3 To Critical Strikes 1 | . . . . . . . . . . . . . . . . . . . 1 . . . Average Slot Usage (%) 73 | . 82 92 99 61 86 98 62 69 67 84 97 97 100 70 19 48 38 23 23 20 15 15 Engine 2 | . 14 2 . 3 6 6 . . . . . . . . . . . . . . . . Core 3 | . . 9 11 . . . 3 7 7 6 6 6 6 3 . 5 5 . . 1 . . Leg 3 | . 28 4 . 6 . . . . . . . . . . . . . . . . . . Hover 6 | . . 27 32 3 . . . . . . . . . . 3 5 2 . . . . . Flight 15 | . . . . 13 38 36 20 23 23 26 40 40 40 25 . 6 7 5 2 5 5 3 Device 5 | . . 6 11 5 5 . . . . . . . . . 3 20 13 6 6 3 . 1 Processor 13 | . 5 11 11 14 17 30 23 23 23 20 20 20 20 16 . . . 4 5 5 5 5 Hackware 6 | . . . . . . 6 7 7 12 20 20 20 20 15 5 8 10 5 5 5 5 5 Protection 3 | . 6 9 10 1 7 . . . . . . . . . . . . . . . . . Energy Gun 3 | . . 8 11 1 7 7 . . . . . 4 6 3 . . . . . . . . Ballistic Gun 6 | . 28 14 11 5 . . . . . 3 6 6 6 3 . . . . . . . . Naked Turns . | . . . . . . . . . . . . . . . . . . . . . . . Heaviest Build 24 | 7 10 15 16 23 20 20 12 12 12 17 17 14 22 24 8 16 12 6 7 7 . 1 Greatest Support 30 | 20 20 21 21 16 20 20 12 12 12 26 22 22 30 26 11 14 14 7 13 13 13 13 Greatest Overweight (x) 3 | . . 1 3 1 . . . . . . . . . 2 . 1 . . . . . . Average Overweight (x) . | . . . . . . . . . . . . . . . . . . . . . . . Largest Inventory Capacity 30 | 5 5 30 5 5 5 5 5 5 5 5 5 5 5 5 5 5 5 5 5 5 5 5 Average Capacity 5 | 5 5 5 5 5 5 5 5 5 5 5 5 5 5 5 5 5 5 5 5 5 5 5 Most Carried 5 | 4 4 5 5 5 5 5 5 5 5 5 5 5 5 5 3 5 5 5 5 2 2 3 Average Carried 4 | 1 2 4 4 4 4 4 4 5 5 4 4 5 4 4 1 4 5 5 4 2 2 2 Final Capacity 5 | 5 5 5 5 5 5 5 5 5 5 5 5 5 5 5 5 5 5 5 5 5 5 5 Final Carried 5 | 2 4 5 3 5 4 5 5 5 5 5 5 5 5 2 1 5 5 5 2 2 2 2 Class Distribution -------------------- 33% | Mutant 27% | Hacker-Mutant 22% | Hacker-Sprinter 9% | Scavenger-Sprinter 3% | Scavenger-Mutant 3% | Scavenger-Scout Dominant Class ---------------- Mutant | -10/Materials Mutant | -9/Materials Mutant | -9/Mines Mutant | -8/Materials Scavenger-Sprinter | -7/Factory Scavenger-Sprinter | -7/Lower Caves Hacker-Sprinter | -7/Lower Caves Hacker-Sprinter | -7/Data Miner Hacker-Sprinter | -6/Proximity Caves Hacker-Mutant | -6/Factory Hacker-Sprinter | -6/Lower Caves Hacker-Sprinter | -6/Lower Caves Hacker-Sprinter | -6/Zion Hacker-Sprinter | -5/Proximity Caves Hacker-Mutant | -5/Factory Hacker-Mutant | -4/Factory Hacker-Mutant | -4/Waste Hacker-Mutant | -4/Factory Hacker-Mutant | -4/Extension Hacker-Mutant | -4/Cetus Hacker-Mutant | -4/Archives Hacker-Mutant | -4/Hub_04(d) Resources | -11 -10 -9 -9 -8 -7 -7 -7 -7 -6 -6 -6 -6 -6 -5 -5 -4 -4 -4 -4 -4 -4 -4 ----------- Run | Jun Mat Mat Min Mat Fac Low Low Dat Pro Fac Low Low Zio Pro Fac Fac Was Fac Ext Cet Arc Hub Matter Collected 1550 | 155 134 50 138 417 191 125 30 . 20 73 77 . 28 95 . . . . 17 . . . Remotely . | . . . . . . . . . . . . . . . . . . . . . . . Salvage Created 1452 | . 184 130 82 484 61 102 . . . 73 74 67 . 90 . 105 . . . . . . Parts 104 | . 13 12 12 32 8 4 . . . 6 3 5 . 4 . 5 . . . . . . Haulers Intercepted . | . . . . . . . . . . . . . . . . . . . . . . . Recyclers Shooed 2 | . . . . 2 . . . . . . . . . . . . . . . . . . Parts Field Recycled . | . . . . . . . . . . . . . . . . . . . . . . . Retrieved Matter . | . . . . . . . . . . . . . . . . . . . . . . . Parts Self-Destructed 20 | . . . . . . 1 3 . 1 . 4 4 . 7 . . . . . . . . Prevented 3 | . . . . . . . . . . . 3 . . . . . . . . . . . Kills | -11 -10 -9 -9 -8 -7 -7 -7 -7 -6 -6 -6 -6 -6 -5 -5 -4 -4 -4 -4 -4 -4 -4 ------- Run | Jun Mat Mat Min Mat Fac Low Low Dat Pro Fac Low Low Zio Pro Fac Fac Was Fac Ext Cet Arc Hub Combat Hostiles Destroyed 42 | . 4 3 6 16 1 2 . . . 3 3 1 . 3 . . . . . . . . Guns 29 | . 4 3 6 7 1 2 . . . 2 2 1 . 1 . . . . . . . . Cannons 9 | . . . . 9 . . . . . . . . . . . . . . . . . . AOE 4 | . . . . . . . . . . 1 1 . . 2 . . . . . . . . Classes Destroyed 10 | . 2 1 1 2 1 1 . . . . . . . 2 . . . . . . . . Recycler 2 | . . . . 1 . . . . . . . . . . . 1 . . . . . . Operator 1 | . . . . . 1 . . . . . . . . . . . . . . . . . Drone 1 | . . . . . . . . . . . . . . 1 . . . . . . . . Watcher 4 | . 1 . . 2 1 . . . . . . . . . . . . . . . . . Swarmer 21 | . . . 6 8 1 . . . . 3 3 . . . . . . . . . . . Grunt 9 | . 4 1 . 2 . 1 . . . . . . . 1 . . . . . . . . Duelist 1 | . . . . . . 1 . . . . . . . . . . . . . . . . Sentry 8 | . . 2 . 5 . . . . . . . 1 . . . . . . . . . . Demolisher 1 | . . . . . . . . . . . . . . 1 . . . . . . . . Hunter 1 | . . . . 1 . . . . . . . . . . . . . . . . . . Best Kill Streak 5 | . 2 2 3 5 1 2 . . . 3 3 1 . 1 . 1 . . . . . . Combat Bots Only 4 | . 2 2 3 4 1 2 . . . 3 3 1 . 1 . . . . . . . . Max Kills in Single Turn 2 | . 1 1 1 2 1 1 . . . 1 2 1 . 1 . 1 . . . . . . Gunslinging . | . . . . . . . . . . . . . . . . . . . . . . . Exploded 1 | . . . . . . . . . . 1 1 . . 1 . . . . . . . . Melee . | . . . . . . . . . . . . . . . . . . . . . . . Uniques/NPCs Destroyed . | . . . . . . . . . . . . . . . . . . . . . . . Combat | -11 -10 -9 -9 -8 -7 -7 -7 -7 -6 -6 -6 -6 -6 -5 -5 -4 -4 -4 -4 -4 -4 -4 -------- Run | Jun Mat Mat Min Mat Fac Low Low Dat Pro Fac Low Low Zio Pro Fac Fac Was Fac Ext Cet Arc Hub Damage Taken 5766 | . 126 179 532 588 346 284 16 . 28 115 158 28 . 1123 46 255 64 243 833 357 198 247 Core 2324 | . 40 61 108 144 107 99 8 . . 23 9 4 . 561 . 33 61 141 398 233 152 142 Absorbed by Shields . | . . . . . . . . . . . . . . . . . . . . . . . Redirected to Shielding 38 | . . . . . 38 . . . . . . . . . . . . . . . . . Core Remaining (%) 73 | 100 84 . 57 73 . . . . 69 . . . . 29 100 . . . . . . . Volleys Fired 134 | . 23 9 8 39 20 7 . . . 7 14 1 . 4 . 2 . . . . . . Largest 2 | . 2 2 2 2 2 2 . . . 2 2 1 . 2 . 1 . . . . . . Hottest 155 | . 40 88 103 69 148 155 . . . 72 72 33 . 113 . 88 . . . . . . Shots Fired 218 | . 46 18 16 69 21 14 . . . 9 17 1 . 5 . 2 . . . . . . Gun 170 | . 46 18 16 39 20 7 . . . 7 14 1 . 2 . . . . . . . . Cannon 40 | . . . . 30 1 7 . . . . . . . . . 2 . . . . . . Launcher 8 | . . . . . . . . . . 2 3 . . 3 . . . . . . . . Special . | . . . . . . . . . . . . . . . . . . . . . . . Kinetic 146 | . 46 9 8 60 . . . . . 7 14 1 . 1 . . . . . . . . Thermal 62 | . . 9 8 9 21 14 . . . . . . . 1 . . . . . . . . Explosive 3 | . . . . . . . . . . . . . . 3 . . . . . . . . Electromagnetic 7 | . . . . . . . . . . 2 3 . . . . 2 . . . . . . Robot Hit Streak 22 | . 13 6 12 22 12 17 . . . 6 7 2 . 4 . 6 . . . . . . Robot Miss Streak 3 | . 2 2 2 3 3 1 . . . 1 1 . . 1 . . . . . . . . Penetration Max . | . . . . . . . . . . . . . . . . . . . . . . . Secondary Targets 2 | . . . 2 . . . . . . . . . . . . . . . . . . . Max Gunslinging Chain 1 | . . . 1 . . . . . . . . . . . . . . . . . . . Shots Hit Robots 178 | . 32 13 14 60 19 13 . . . 7 12 1 . 5 . 2 . . . . . . Core Hits 111 | . 14 5 8 52 7 8 . . . 5 5 1 . 5 . 1 . . . . . . Critical Kills 2 | . . . . . . . . . . 1 . 1 . . . . . . . . . . Critical Parts Destroyed . | . . . . . . . . . . . . . . . . . . . . . . . Critical Strikes 5 | . . . 1 2 . . . . . 1 . 1 . . . . . . . . . . Burn 3 | . . . 1 2 . . . . . . . . . . . . . . . . . . Destroy 2 | . . . . . . . . . . 1 . 1 . . . . . . . . . . Melee Attacks . | . . . . . . . . . . . . . . . . . . . . . . . Impact . | . . . . . . . . . . . . . . . . . . . . . . . Slashing . | . . . . . . . . . . . . . . . . . . . . . . . Piercing . | . . . . . . . . . . . . . . . . . . . . . . . Sneak Attacks . | . . . . . . . . . . . . . . . . . . . . . . . Combat Hostiles . | . . . . . . . . . . . . . . . . . . . . . . . Follow-up Attacks . | . . . . . . . . . . . . . . . . . . . . . . . Damage Inflicted 3822 | . 280 205 236 1283 386 332 . . . 259 313 21 . 429 . 78 . . . . . . Guns 2250 | . 280 205 236 580 366 201 . . . 117 216 21 . 28 . . . . . . . . Cannons 932 | . . . . 703 20 131 . . . . . . . . . 78 . . . . . . Explosions 640 | . . . . . . . . . . 142 97 . . 401 . . . . . . . . Melee . | . . . . . . . . . . . . . . . . . . . . . . . Ramming . | . . . . . . . . . . . . . . . . . . . . . . . Kinetic 1949 | . 280 93 89 1116 . . . . . 117 216 21 . 17 . . . . . . . . Thermal 1227 | . . 112 147 167 386 332 . . . . . . . 83 . . . . . . . . Explosive 329 | . . . . . . . . . . . . . . 329 . . . . . . . . Electromagnetic 317 | . . . . . . . . . . 142 97 . . . . 78 . . . . . . Impact . | . . . . . . . . . . . . . . . . . . . . . . . Slashing . | . . . . . . . . . . . . . . . . . . . . . . . Piercing . | . . . . . . . . . . . . . . . . . . . . . . . Highest Corruption 8 | . 1 . . 6 1 1 1 1 1 . . . . 3 . . 4 7 7 7 7 8 Average Corruption 2 | . 1 . . 2 1 1 1 1 1 . . . . 3 . . 4 5 7 7 7 7 Corruption Purged . | . . . . . . . . . . . . . . . . . . . . . . . Corruption Blocked . | . . . . . . . . . . . . . . . . . . . . . . . Effects 24 | . 1 . . 4 1 1 . . 2 . . . . . . . 1 4 6 2 1 1 Message Errors 9 | . . . . 2 . 1 . . 2 . . . . . . . 1 1 2 . . . Matter Fused 7 | . . . . 2 . . . . . . . . . . . . . 1 2 1 . 1 Heat Flow Errors 2 | . 1 . . . . . . . . . . . . . . . . . . . 1 . Data Loss (minor) 4 | . . . . . 1 . . . . . . . . . . . . 1 1 1 . . Data Loss (major) 2 | . . . . . . . . . . . . . . . . . . 1 1 . . . Overload Shots . | . . . . . . . . . . . . . . . . . . . . . . . Overflow Damage 2 | . . . . . . . . . . . 2 . . . . . . . . . . . Projectiles . | . . . . . . . . . . . . . . . . . . . . . . . Explosions 2 | . . . . . . . . . . . 2 . . . . . . . . . . . Melee . | . . . . . . . . . . . . . . . . . . . . . . . Knockbacks 16 | . . . . 16 . . . . . . . . . . . . . . . . . . Impact . | . . . . . . . . . . . . . . . . . . . . . . . Kinetic 14 | . . . . 14 . . . . . . . . . . . . . . . . . . Secondary 2 | . . . . 2 . . . . . . . . . . . . . . . . . . Self-Inflicted Damage 99 | . . . . . . . . . . 7 . . . 92 . . . . . . . . Shots 4 | . . . . . . . . . . 2 . . . 2 . . . . . . . . Rammed . | . . . . . . . . . . . . . . . . . . . . . . . Targets Rammed . | . . . . . . . . . . . . . . . . . . . . . . . Kicked . | . . . . . . . . . . . . . . . . . . . . . . . Crushed . | . . . . . . . . . . . . . . . . . . . . . . . Highest Temperature 592 | . 193 171 59 147 160 592 . . 12 10 5 8 114 53 . 22 . . . . 226 . Average Temperature 54 | . 34 56 20 26 55 318 . . 12 3 2 2 50 23 . 16 . . . . 116 . Received Heat Transfer 1104 | . 93 105 . 198 105 90 . . 36 15 . 9 . 204 45 . . 18 75 57 36 18 Effects 4 | . . . . . . 4 . . . . . . . . . . . . . . . . Shutdowns 1 | . . . . . . 1 . . . . . . . . . . . . . . . . Energy Bleed 1 | . . . . . . 1 . . . . . . . . . . . . . . . . Short Circuit 1 | . . . . . . 1 . . . . . . . . . . . . . . . . Damage (minor) 1 | . . . . . . 1 . . . . . . . . . . . . . . . . Siege Activations . | . . . . . . . . . . . . . . . . . . . . . . . Robots Corrupted . | . . . . . . . . . . . . . . . . . . . . . . . Combat Hostiles . | . . . . . . . . . . . . . . . . . . . . . . . Parts Fried 1 | . . . . . . . . . . . 1 . . . . . . . . . . . Impact Corruptions . | . . . . . . . . . . . . . . . . . . . . . . . Robots Melted . | . . . . . . . . . . . . . . . . . . . . . . . Combat Hostiles . | . . . . . . . . . . . . . . . . . . . . . . . Parts Melted . | . . . . . . . . . . . . . . . . . . . . . . . Heat Transferred 2582 | . . 259 397 481 730 610 . . . . . . . 105 . . . . . . . . Parts Sabotaged . | . . . . . . . . . . . . . . . . . . . . . . . Parts Stolen . | . . . . . . . . . . . . . . . . . . . . . . . Parts Stripped . | . . . . . . . . . . . . . . . . . . . . . . . Power Chain Reactions . | . . . . . . . . . . . . . . . . . . . . . . . Missiles Intercepted . | . . . . . . . . . . . . . . . . . . . . . . . Alert | -11 -10 -9 -9 -8 -7 -7 -7 -7 -6 -6 -6 -6 -6 -5 -5 -4 -4 -4 -4 -4 -4 -4 ------- Run | Jun Mat Mat Min Mat Fac Low Low Dat Pro Fac Low Low Zio Pro Fac Fac Was Fac Ext Cet Arc Hub Peak Influence 533 | . 161 267 158 533 502 . . . . 405 . . . . 126 178 66 74 101 71 83 71 Initial 311 | . . 57 88 . 185 . . . . 311 . . . . 66 52 51 22 31 48 23 24 Average 147 | . 82 130 110 263 303 . . . . 339 . . . . 105 93 44 52 61 43 56 53 Maximum Alert Level 2 | . . 1 . 2 2 . . . . 2 . . . . . . . . . . . . Low Security (%) 76 | 100 100 77 100 42 11 . . . . . . . . . 100 100 100 100 100 100 100 100 Level 1 16 | . . 22 . 25 70 . . . . 98 . . . . . . . . . . . . Level 2 7 | . . . . 32 18 . . . . 1 . . . . . . . . . . . . Level 3 . | . . . . . . . . . . . . . . . . . . . . . . . Level 4 . | . . . . . . . . . . . . . . . . . . . . . . . Level 5 . | . . . . . . . . . . . . . . . . . . . . . . . High Security . | . . . . . . . . . . . . . . . . . . . . . . . Max Security . | . . . . . . . . . . . . . . . . . . . . . . . Squads Dispatched 21 | . . 2 . 6 7 . . . . . . . . . 1 . . 1 . 1 . 3 Investigation 13 | . . 1 . 5 5 . . . . . . . . . . . . 1 . 1 . . Extermination . | . . . . . . . . . . . . . . . . . . . . . . . Reinforcement 6 | . . 1 . . 2 . . . . . . . . . 1 . . . . . . 2 Assault 1 | . . . . . . . . . . . . . . . . . . . . . . 1 Garrison 1 | . . . . 1 . . . . . . . . . . . . . . . . . . Intercept . | . . . . . . . . . . . . . . . . . . . . . . . Searches Triggered . | . . . . . . . . . . . . . . . . . . . . . . . Data Miner Redirects 2 | . . . . . . . . . . . . . . . . . . 1 . 1 . . Construction Impeded . | . . . . . . . . . . . . . . . . . . . . . . . Haulers Reinforced . | . . . . . . . . . . . . . . . . . . . . . . . Active Scanning Responses . | . . . . . . . . . . . . . . . . . . . . . . . Cargo Convoy Interrupts . | . . . . . . . . . . . . . . . . . . . . . . . Stealth | -11 -10 -9 -9 -8 -7 -7 -7 -7 -6 -6 -6 -6 -6 -5 -5 -4 -4 -4 -4 -4 -4 -4 --------- Run | Jun Mat Mat Min Mat Fac Low Low Dat Pro Fac Low Low Zio Pro Fac Fac Was Fac Ext Cet Arc Hub Distress Signals 9 | . . 1 . 1 1 . . . . . . . . 4 . . . . 1 1 . . Communications Jammed . | . . . . . . . . . . . . . . . . . . . . . . . Distress Signals . | . . . . . . . . . . . . . . . . . . . . . . . Times Spotted 207 | . 9 10 7 36 32 4 5 . 1 5 5 5 . 26 3 11 3 8 11 11 4 11 Peak Tracking Total 13 | . 3 4 3 6 13 4 5 . 1 3 4 4 . 13 2 6 3 4 9 9 4 12 Tactical Retreats 28 | . 1 1 . 5 6 1 2 . . . . . . 4 1 1 . 2 4 . . . Traps | -11 -10 -9 -9 -8 -7 -7 -7 -7 -6 -6 -6 -6 -6 -5 -5 -4 -4 -4 -4 -4 -4 -4 ------- Run | Jun Mat Mat Min Mat Fac Low Low Dat Pro Fac Low Low Zio Pro Fac Fac Was Fac Ext Cet Arc Hub Traps Triggered 6 | . 1 . 1 . 1 . . . . . . . . 1 . 1 . 1 . . . . Indirectly . | . . . . . . . . . . . . . . . . . . . . . . . Trap Hack Attempts . | . . . . . . . . . . . . . . . . . . . . . . . Triggered . | . . . . . . . . . . . . . . . . . . . . . . . Disarmed . | . . . . . . . . . . . . . . . . . . . . . . . Reprogrammed . | . . . . . . . . . . . . . . . . . . . . . . . Reused . | . . . . . . . . . . . . . . . . . . . . . . . Traps Extracted . | . . . . . . . . . . . . . . . . . . . . . . . Installed . | . . . . . . . . . . . . . . . . . . . . . . . Triggered 2 | . . . . . . . 1 . . . 1 . . . . . . . . . . . Machines | -11 -10 -9 -9 -8 -7 -7 -7 -7 -6 -6 -6 -6 -6 -5 -5 -4 -4 -4 -4 -4 -4 -4 ---------- Run | Jun Mat Mat Min Mat Fac Low Low Dat Pro Fac Low Low Zio Pro Fac Fac Was Fac Ext Cet Arc Hub Machines Disabled 5 | . . . . . . . . . . 1 . . . 2 . . . . . 2 . . Max in Single Turn 2 | . . . . . . . . . . 1 . . . 2 . . . . . . . . Garrison Access 1 | . . . . . . . . . . . . . . . . . . . . . . 1 Network Hub 1 | . . . . . . . . . . . . . . . . . . . . . . 1 Machines Repaired . | . . . . . . . . . . . . . . . . . . . . . . . Machines Sabotaged . | . . . . . . . . . . . . . . . . . . . . . . . Overloaded Fab Kills . | . . . . . . . . . . . . . . . . . . . . . . . Hacking | -11 -10 -9 -9 -8 -7 -7 -7 -7 -6 -6 -6 -6 -6 -5 -5 -4 -4 -4 -4 -4 -4 -4 --------- Run | Jun Mat Mat Min Mat Fac Low Low Dat Pro Fac Low Low Zio Pro Fac Fac Was Fac Ext Cet Arc Hub Machines Accessed 35 | . 4 5 1 5 6 . . 4 . . . . . . 1 3 . 1 1 3 . 1 Terminals 29 | . 4 5 . 5 6 . . . . . . . . . 1 2 . 1 1 3 . 1 Fabricators . | . . . . . . . . . . . . . . . . . . . . . . . Repair Stations . | . . . . . . . . . . . . . . . . . . . . . . . Recycling Units 1 | . . . . . . . . . . . . . . . . 1 . . . . . . Scanalyzers . | . . . . . . . . . . . . . . . . . . . . . . . Garrison Access . | . . . . . . . . . . . . . . . . . . . . . . . Total Hacks 119 | . 16 20 1 19 14 . . 29 . . . . . . 1 6 . 3 2 6 . 2 Successful 70 | . 6 11 1 10 3 . . 29 . . . . . . . 3 . 1 1 4 . 1 Failed 48 | . 9 9 . 9 11 . . . . . . . . . 1 3 . 2 1 2 . 1 Catastrophic 14 | . 1 . . 4 4 . . . . . . . . . 1 2 . 1 . . . 1 Database Lockouts 1 | . 1 . . . . . . . . . . . . . . . . . . . . . Manual 69 | . 15 19 . 18 9 . . . . . . . 1 . 1 3 . . . 1 . 2 Terminals 88 | . 16 20 . 19 14 . . . . . . . . . 1 5 . 3 2 6 . 2 Fabricators . | . . . . . . . . . . . . . . . . . . . . . . . Repair Stations . | . . . . . . . . . . . . . . . . . . . . . . . Recycling Units 1 | . . . . . . . . . . . . . . . . 1 . . . . . . Scanalyzers . | . . . . . . . . . . . . . . . . . . . . . . . Garrison Access . | . . . . . . . . . . . . . . . . . . . . . . . Terminal Hacks 69 | . 6 11 1 10 3 . . 29 . . . . . . . 2 . 1 1 4 . 1 Record 16 | . . . . . 1 . . 11 . . . . . . . 1 . . . 3 . . Part Schematic 12 | . . . . . . . . 12 . . . . . . . . . . . . . . Robot Schematic 3 | . . . . . . . . 3 . . . . . . . . . . . . . . Robot Analysis 26 | . 4 11 . 9 1 . . . . . . . . . . 1 . . . . . . Prototype ID Bank 3 | . . . . . . . . 3 . . . . . . . . . . . . . . Open Door 3 | . . . 1 . . . . . . . . . . . . . . . 1 1 . . Branch Access Points 4 | . . . . 1 1 . . . . . . . . . . . . 1 . . . 1 Alert Level 1 | . 1 . . . . . . . . . . . . . . . . . . . . . Zone Layout 1 | . 1 . . . . . . . . . . . . . . . . . . . . . Fabricator Hacks . | . . . . . . . . . . . . . . . . . . . . . . . Repair Station Hacks . | . . . . . . . . . . . . . . . . . . . . . . . Recycling Unit Hacks 1 | . . . . . . . . . . . . . . . . 1 . . . . . . Report Inventory 1 | . . . . . . . . . . . . . . . . 1 . . . . . . Scanalyzer . | . . . . . . . . . . . . . . . . . . . . . . . Garrison Access Hacks . | . . . . . . . . . . . . . . . . . . . . . . . Unauthorized Hacks . | . . . . . . . . . . . . . . . . . . . . . . . Terminals . | . . . . . . . . . . . . . . . . . . . . . . . Fabricators . | . . . . . . . . . . . . . . . . . . . . . . . Repair Stations . | . . . . . . . . . . . . . . . . . . . . . . . Recycling Units . | . . . . . . . . . . . . . . . . . . . . . . . Scanalyzers . | . . . . . . . . . . . . . . . . . . . . . . . Garrison Access . | . . . . . . . . . . . . . . . . . . . . . . . Data Cores Recovered . | . . . . . . . . . . . . . . . . . . . . . . . Used . | . . . . . . . . . . . . . . . . . . . . . . . Hacking Detections 28 | . 4 5 . 5 5 . . . . . . . . . 1 2 . 1 1 3 . 1 Full Trace Events 16 | . 1 3 . 5 5 . . . . . . . . . . . . 1 . 1 . . Feedback Events 2 | . . . . . 1 . . . . . . . . . . . . 1 . . . . Corruption 1 | . . . . . 1 . . . . . . . . . . . . . . . . . Hackware Fried 1 | . . . . . . . . . . . . . . . . . . 1 . . . . Feedback Blocked . | . . . . . . . . . . . . . . . . . . . . . . . Robot Schematics Acquired 3 | . . . . . . . . 3 . . . . . . . . . . . . . . Robots Built . | . . . . . . . . . . . . . . . . . . . . . . . Authchips . | . . . . . . . . . . . . . . . . . . . . . . . Time . | . . . . . . . . . . . . . . . . . . . . . . . Total Robot Build Rating . | . . . . . . . . . . . . . . . . . . . . . . . Part Schematics Acquired 12 | . . . . . . . . 12 . . . . . . . . . . . . . . Parts Built . | . . . . . . . . . . . . . . . . . . . . . . . Authchips . | . . . . . . . . . . . . . . . . . . . . . . . Time . | . . . . . . . . . . . . . . . . . . . . . . . Total Part Build Rating . | . . . . . . . . . . . . . . . . . . . . . . . Parts Repaired . | . . . . . . . . . . . . . . . . . . . . . . . Time . | . . . . . . . . . . . . . . . . . . . . . . . Parts Recycled . | . . . . . . . . . . . . . . . . . . . . . . . Recycled Matter . | . . . . . . . . . . . . . . . . . . . . . . . Retrieved Matter . | . . . . . . . . . . . . . . . . . . . . . . . Retrieved Components . | . . . . . . . . . . . . . . . . . . . . . . . Parts Scanalyzed . | . . . . . . . . . . . . . . . . . . . . . . . Part Schematics Acquired . | . . . . . . . . . . . . . . . . . . . . . . . Parts Damaged . | . . . . . . . . . . . . . . . . . . . . . . . Bothacking | -11 -10 -9 -9 -8 -7 -7 -7 -7 -6 -6 -6 -6 -6 -5 -5 -4 -4 -4 -4 -4 -4 -4 ------------ Run | Jun Mat Mat Min Mat Fac Low Low Dat Pro Fac Low Low Zio Pro Fac Fac Was Fac Ext Cet Arc Hub Used RIF Installer . | . . . . . . . . . . . . . . . . . . . . . . . Robots Hacked . | . . . . . . . . . . . . . . . . . . . . . . . Non-combat . | . . . . . . . . . . . . . . . . . . . . . . . Combat . | . . . . . . . . . . . . . . . . . . . . . . . Robot Hacks Applied . | . . . . . . . . . . . . . . . . . . . . . . . Relay Couplers Released 2 | . . . . . . . . . . . . . . . . . . . . . . 2 Machine Destruction 2 | . . . . . . . . . . . . . . . . . . . . . . 2 Fabnet Peak Effective % . | . . . . . . . . . . . . . . . . . . . . . . . Robots Rewired . | . . . . . . . . . . . . . . . . . . . . . . . Allies Hacked . | . . . . . . . . . . . . . . . . . . . . . . . Hacks Repelled . | . . . . . . . . . . . . . . . . . . . . . . . Allies | -11 -10 -9 -9 -8 -7 -7 -7 -7 -6 -6 -6 -6 -6 -5 -5 -4 -4 -4 -4 -4 -4 -4 -------- Run | Jun Mat Mat Min Mat Fac Low Low Dat Pro Fac Low Low Zio Pro Fac Fac Was Fac Ext Cet Arc Hub Total Allies 5 | . . . . . . . . . 1 . . . 2 . . . . . . 2 . . Largest Group 2 | . . . . . . . . . 1 . . . 2 2 . . . . . 2 . . Highest-Rated Group 192 | . . . . . . . . . 96 . . . 63 63 . . . . . 192 . . Highest-Rated Ally 96 | . . . . . . . . . 96 . . . 32 32 . . . . . 96 . . Total Orders . | . . . . . . . . . . . . . . . . . . . . . . . Ally Attacks 26 | . . . . . . . . . 5 . . . . 14 . . . . . 7 . . Total Damage 989 | . . . . . . . . . 132 . . . . 287 . . . . . 570 . . Kills 4 | . . . . . . . . . 1 . . . . 2 . . . . . 1 . . Allies Corrupted . | . . . . . . . . . . . . . . . . . . . . . . . Allies Melted . | . . . . . . . . . . . . . . . . . . . . . . . Intel | -11 -10 -9 -9 -8 -7 -7 -7 -7 -6 -6 -6 -6 -6 -5 -5 -4 -4 -4 -4 -4 -4 -4 ------- Run | Jun Mat Mat Min Mat Fac Low Low Dat Pro Fac Low Low Zio Pro Fac Fac Was Fac Ext Cet Arc Hub Robot Analysis Total 25 | . 4 11 . 8 1 . . . . . . . . . . 1 . . . . . . Derelict Logs Recovered 12 | . . . . . . 2 1 . 2 . 1 1 2 3 . . . . . . . . Drone Launches . | . . . . . . . . . . . . . . . . . . . . . . . Drone Recoveries . | . . . . . . . . . . . . . . . . . . . . . . . Exploration | -11 -10 -9 -9 -8 -7 -7 -7 -7 -6 -6 -6 -6 -6 -5 -5 -4 -4 -4 -4 -4 -4 -4 ------------- Run | Jun Mat Mat Min Mat Fac Low Low Dat Pro Fac Low Low Zio Pro Fac Fac Was Fac Ext Cet Arc Hub Turns Passed 4358 | 64 326 227 585 484 304 221 133 29 122 103 102 65 371 308 168 272 45 129 163 69 19 49 Spaces Moved 7463 | 48 217 294 246 471 779 696 401 96 255 185 275 241 915 530 309 503 107 300 288 160 46 101 Core 484 | 7 . . 2 138 . . . . . . . . . 106 109 . . . 95 . . 27 Treads . | . . . . . . . . . . . . . . . . . . . . . . . Legs 398 | 41 217 26 . 114 . . . . . . . . . . . . . . . . . . Wheels . | . . . . . . . . . . . . . . . . . . . . . . . Hover 936 | . . 268 241 73 . . . . . . . . . . 200 154 . . . . . . Flight 5645 | . . . 3 146 779 696 401 96 255 185 275 241 915 424 . 349 107 300 193 160 46 74 Fastest Speed 21 | 50 120 52 50 29 27 27 30 30 30 21 24 24 22 26 50 37 37 40 40 40 40 40 Average Speed 40 | 109 120 58 54 69 28 27 31 30 30 38 24 24 25 37 50 41 38 41 46 40 40 44 Slowest Speed 280 | 120 120 140 280 190 29 34 34 30 30 50 24 24 26 150 50 100 40 45 50 40 40 50 Overloaded Moves . | . . . . . . . . . . . . . . . . . . . . . . . Propulsion Burnouts . | . . . . . . . . . . . . . . . . . . . . . . . Robots Hopped 51 | . . . . 9 11 1 1 . 2 3 3 . . 5 . 8 . 3 1 4 . . Cave-ins Triggered . | . . . . . . . . . . . . . . . . . . . . . . . Exploration Rate (%) 45 | 4 35 37 38 49 24 90 68 71 51 6 52 55 86 63 13 15 72 12 44 75 74 21 Regions Visited 22 Branch Regions 13 Pre-discovered Areas 5 | . . . . . . . . 1 1 . . . 2 1 . . . . . . . . Known Exits Taken 18 | . 1 1 1 1 1 1 1 1 1 1 1 1 1 1 . . . 1 1 1 1 . Unknown Exits Taken 2 | 1 . . . . . . . . . . . . . . 1 . . . . . . . Scrap Searched 26 | . . . 1 . . 5 12 . 2 . 1 1 2 2 . . . . . . . . Spaces Dug . | . . . . . . . . . . . . . . . . . . . . . . . Terrain Destroyed . | . . . . . . . . . . . . . . . . . . . . . . . Melee . | . . . . . . . . . . . . . . . . . . . . . . . Projectile . | . . . . . . . . . . . . . . . . . . . . . . . AOE . | . . . . . . . . . . . . . . . . . . . . . . . Terrain Rammed . | . . . . . . . . . . . . . . . . . . . . . . . Walls Destroyed . | . . . . . . . . . . . . . . . . . . . . . . . Machines Disabled . | . . . . . . . . . . . . . . . . . . . . . . . Actions | -11 -10 -9 -9 -8 -7 -7 -7 -7 -6 -6 -6 -6 -6 -5 -5 -4 -4 -4 -4 -4 -4 -4 --------- Run | Jun Mat Mat Min Mat Fac Low Low Dat Pro Fac Low Low Zio Pro Fac Fac Was Fac Ext Cet Arc Hub Total 8540 | 59 246 331 679 554 827 712 407 95 297 203 291 245 1053 626 322 558 110 299 316 160 45 105 Wait 738 | . 1 . 420 3 7 . . . 42 . . 3 126 71 4 36 . . 20 5 . . Move 7350 | 47 216 293 245 456 758 693 398 95 250 178 268 240 914 521 308 488 106 293 285 152 45 101 Hop 41 | . . . . 5 9 1 1 . 2 3 3 . . 3 . 7 . 3 1 3 . . Pick Up 67 | 7 4 4 1 11 7 2 2 . . 6 2 . 3 1 4 9 . . 2 . . 2 Fast Attach 50 | . . 10 1 13 6 3 3 . 2 1 . 1 1 1 . 3 2 3 . . . . Attach 60 | 5 2 . 2 10 8 . . . . 6 . . 2 4 5 8 . . 6 . . 2 Detach 8 | . . . . 2 2 . . . . . . . . . . 3 . . 1 . . . Swap 12 | . . 3 . 3 1 1 . . . 1 1 . 2 . . . . . . . . . Drop 62 | . . 12 2 12 9 5 3 . 1 1 3 . 5 3 1 2 2 . 1 . . . Fire 134 | . 23 9 8 39 20 7 . . . 7 14 1 . 4 . 2 . . . . . . Melee . | . . . . . . . . . . . . . . . . . . . . . . . Ram . | . . . . . . . . . . . . . . . . . . . . . . . Kick . | . . . . . . . . . . . . . . . . . . . . . . . Crush . | . . . . . . . . . . . . . . . . . . . . . . . Escape Stasis 18 | . . . . . . . . . . . . . . 18 . . . . . . . . Rewire . | . . . . . . . . . . . . . . . . . . . . . . . Trap . | . . . . . . . . . . . . . . . . . . . . . . . Miscellaneous . | . . . . . . . . . . . . . . . . . . . . . . . Route ------- -11/Junkyard -10/Materials (discovered 3 exits: *Mat x2 / [*Min]) -9/Materials -9/Mines -8/Materials -7/Factory (discovered 2 exits: *Low x2) -7/Lower Caves -7/Lower Caves -7/Data Miner -6/Proximity Caves -6/Factory (discovered 2 exits: Fac / *Low) -6/Lower Caves -6/Lower Caves -6/Zion -5/Proximity Caves -5/Factory (discovered 2 exits: *Fac / Upp) -4/Factory -4/Waste -4/Factory (discovered 4 exits: Upp x2 / *Ext x2) -4/Extension (discovered 3 exits: *Res x2 / *Cet) -4/Cetus (discovered 2 exits: *Res / *Arc) -4/Archives -4/Hub_04(d) History --------- Turn | Location | Event 3 | -11/Junkyard | Discovered new exit (range 15) 65 | -11/Junkyard | Entered Materials 107 | -10/Materials | Discovered new exit (range 12) 110 | -10/Materials | Central database locked down 132 | -10/Materials | Discovered new exit (range 12) 289 | -10/Materials | Discovered new exit (range 6) 293 | -10/Materials | Identified exit to Materials 318 | -10/Materials | Build established: Mutant 391 | -10/Materials | Entered another Materials area 391 | -9/Materials | Evolved 2 slots: Propulsion x1, Utility x1 611 | -9/Materials | Discovered new exit (range 16) 618 | -9/Materials | Identified exit to Mines 618 | -9/Materials | Entered Mines 651 | -9/Mines | Met a Derelict who couldn't figure out how to use a Trap Extractor 1134 | -9/Mines | Discovered new exit (range 3) 1135 | -9/Mines | Identified exit to Materials 1174 | -9/Mines | Assembled infested the area 1179 | -9/Mines | Assisted by a Guerilla fighting off Assembled 1203 | -9/Mines | Entered Materials 1203 | -8/Materials | Evolved 2 slots: Propulsion x1, Utility x1 1232 | -8/Materials | Lost 10 parts (1p5n2u2w) 1432 | -8/Materials | Garrison activated, responded to threat 1680 | -8/Materials | Discovered new exit (range 10) 1682 | -8/Materials | Identified exit to Factory 1687 | -8/Materials | Entered Factory 1687 | -7/Factory | Evolved 2 slots: Propulsion x1, Utility x1 1921 | -7/Factory | Identified exit to Lower Caves 1991 | -7/Factory | Entered Lower Caves 2016 | -7/Lower Caves | Learned 4 Factory zone layouts 2045 | -7/Lower Caves | Spotted B-75 Beast 2138 | -7/Lower Caves | Learned location of 2 exits from Factory 2187 | -7/Lower Caves | Discovered new exit (range 8) 2195 | -7/Lower Caves | Identified exit to Lower Caves 2212 | -7/Lower Caves | Entered another Lower Caves area 2214 | -7/Lower Caves | Attracted the attention of an 0b10 checkpoint 2242 | -7/Lower Caves | Lost 4 parts (3n1w) 2260 | -7/Lower Caves | Attracted the attention of an 0b10 base 2343 | -7/Lower Caves | Discovered new exit (range 7) 2345 | -7/Lower Caves | Identified exit to Data Miner 2345 | -7/Lower Caves | Entered Data Miner 2345 | -7/Data Miner | Discovered new exit (range 6) 2347 | -7/Data Miner | Identified exit to Proximity Caves 2351 | -7/Data Miner | Met Data Miner 2358 | -7/Data Miner | Learned location of Section 7 (-3) 2358 | -7/Data Miner | Acquired the access code to Warlord's prototype stash 2363 | -7/Data Miner | Received God Mode back door access code from Data Miner 2374 | -7/Data Miner | Entered Proximity Caves 2379 | -6/Proximity Caves | Escorted by Enhanced Grunt 2439 | -6/Proximity Caves | Learned Factory emergency access door positions 2442 | -6/Proximity Caves | Discovered new exit (range 8) 2444 | -6/Proximity Caves | Identified exit to Factory 2450 | -6/Proximity Caves | Spotter reported a threat 2472 | -6/Proximity Caves | Spotter reported a threat 2496 | -6/Proximity Caves | Entered Factory 2496 | -6/Factory | Evolved 2 slots: Propulsion x1, Utility x1 2497 | -6/Factory | Identified exit to Factory 2497 | -6/Factory | Identified exit to Lower Caves 2599 | -6/Factory | Entered Lower Caves 2652 | -6/Lower Caves | Encountered a Warlord checkpoint 2661 | -6/Lower Caves | Identified exit to Lower Caves 2701 | -6/Lower Caves | Entered another Lower Caves area 2705 | -6/Lower Caves | Encountered a Warlord checkpoint 2748 | -6/Lower Caves | Learned Factory terminal intel 2764 | -6/Lower Caves | Discovered new exit (range 7) 2765 | -6/Lower Caves | Identified exit to Zion 2766 | -6/Lower Caves | Entered Zion 2867 | -6/Zion | Build established: Hacker-Sprinter 2909 | -6/Zion | Given A8's code to call for help 2935 | -6/Zion | Given the Hacking Drone Bay 2937 | -6/Zion | Found Prototype Device 3003 | -6/Zion | Learned location of Warlord (-5) 3077 | -6/Zion | Gained Derelict followers 3107 | -6/Zion | Discovered new exit (range 15) 3112 | -6/Zion | Learned 4 Factory zone layouts 3121 | -6/Zion | Identified exit to Proximity Caves 3137 | -6/Zion | Entered Proximity Caves 3137 | -5/Proximity Caves | Accompanied by 2 allies 3267 | -5/Proximity Caves | Learned Factory terminal intel 3274 | -5/Proximity Caves | Learned Factory terminal intel 3278 | -5/Proximity Caves | Spotted B-75 Beast 3371 | -5/Proximity Caves | Identified Hacking Drone Bay 3373 | -5/Proximity Caves | Core integrity fell below 50% 3403 | -5/Proximity Caves | Lost 13 parts (1p8n4u) 3439 | -5/Proximity Caves | Discovered exit to Factory (range 14) 3445 | -5/Proximity Caves | Entered Factory 3445 | -5/Factory | Evolved 2 slots: Propulsion x1, Utility x1 3446 | -5/Factory | Identified exit to Upper Caves 3447 | -5/Factory | Loaded intel: 26 terminal locations 3602 | -5/Factory | Discovered new exit (range 15) 3603 | -5/Factory | Build established: Hacker-Mutant 3613 | -5/Factory | Entered another Factory area 3613 | -4/Factory | Evolved 2 slots: Utility x2 3614 | -4/Factory | Identified exit to Extension 3615 | -4/Factory | Loaded intel: 27 terminal locations 3800 | -4/Factory | Found Prototype Device 3800 | -4/Factory | Identified Adv. EM Disruption Field 3885 | -4/Factory | Sucked down chute 3885 | -4/Factory | Entered Waste 3891 | -4/Waste | Found Broken Adv. Force Booster 3897 | -4/Waste | Spotted C-40 Crusher 3898 | -4/Waste | Spotted C-40 Crusher 3900 | -4/Waste | EMP discharged 3902 | -4/Waste | Spotted C-40 Crusher 3904 | -4/Waste | Spotted C-40 Crusher 3904 | -4/Waste | Spotted C-40 Crusher 3908 | -4/Waste | Spotted C-40 Crusher 3908 | -4/Waste | Crushed by Compactor (1 part destroyed, 1 dropped) 3909 | -4/Waste | Crushed by Compactor (1 part destroyed, 2 dropped) 3925 | -4/Waste | Discovered new exit (range 13) 3930 | -4/Waste | Entered Factory 3931 | -4/Factory | Loaded intel: 28 terminal locations 3937 | -4/Factory | Identified exit to Upper Caves 3937 | -4/Factory | Imp. System Shield fried by hacking feedback 3965 | -4/Factory | Incoming investigation squad redirected 3977 | -4/Factory | Lost 5 parts (1p1n3u) 4059 | -4/Factory | Entered Extension 4129 | -4/Extension | Spotted B-86 Titan 4133 | -4/Extension | Spotted B-86 Titan 4138 | -4/Extension | Discovered new exit (range 3) 4138 | -4/Extension | Identified exit to Research 4160 | -4/Extension | Core integrity fell below 50% 4189 | -4/Extension | Discovered new exit (range 16) 4190 | -4/Extension | Lost 5 parts (2n3u) 4190 | -4/Extension | Discovered exit to Research (range 14) 4196 | -4/Extension | Identified exit to Cetus 4222 | -4/Extension | Entered Cetus 4228 | -4/Cetus | Spotted Cetus Guard 4228 | -4/Cetus | Spotted Cetus Guard 4229 | -4/Cetus | Spotted Cetus Guard 4238 | -4/Cetus | Discovered exit to Research (range 16) 4245 | -4/Cetus | Spotted Cetus Guard 4269 | -4/Cetus | Enhanced Grunt warped into view, answering call for help 4275 | -4/Cetus | Enhanced Grunt warped into view, answering call for help 4285 | -4/Cetus | Incoming investigation squad redirected 4285 | -4/Cetus | Discovered new exit (range 15) 4291 | -4/Cetus | Identified exit to Archives 4291 | -4/Cetus | Entered Archives 4301 | -4/Archives | Unable to access archive contents 4303 | -4/Archives | Core integrity fell below 20% 4305 | -4/Archives | Discovered new exit (range 13) 4309 | -4/Archives | Identified exit to Hub_04(d) 4310 | -4/Archives | Entered Hub_04(d) 4355 | -4/Hub_04(d) | Network Hub disabled 4359 | -4/Hub_04(d) | Destroyed by H-77 Assassin with Coil Gun Last Messages --------------- 04331_ Slug penetrates Wall. 04335_ Penetrated by Slug. 04341_ Acquired Field Propulsion Drive. 04349_ K-01 Serf destroyed. 04349_ Slug penetrates Wall. 04352_ ALERT: Hostiles spotted, dispatching reinforcements to Terminal H003. 04353_ System corrupted: Matter fused (-6). 04355_ ALERT: Network intrusion management efficiency reduced by 20%. Dispatching hub defense squads. All non-combat units evacuate. 04355_ Network Hub explodes. 04355_ R-10 Processor destroyed. 04355_ S-27 Virus destroyed. 04355_ ALERT: Garrison Access compromised, dispatching assault squad. 04355_ U-05 Engineer destroyed. 04355_ Control Node disabled. 04355_ Penetrated by Slug. 04355_ Field Propulsion Drive destroyed. 04358_ Slug penetrates Garrison Access. 04359_ Penetrated by Slug. Map ----- +----------------------------------------------------+ | ?????# " " #?????????????????? | | ?????# " " #?????????????????? | | ?????# " " #????? ????????? | | ?????# #??? ????????? | | ?????# " " # ????????? | | ?????# " " !# ########? | | ?????# " " ## ?? | | ?????# ## ##? | | #######+###+## ?? | | =% # ] ##? | | ! # ; #? | | ########## # ; #? | | ???? # ; #? | | * ; #? | | ?? " " | %%%; ; #? | | ?? " % =*%; ; #? | | ?? " ;;; ; #? | | ?? ?# # ;! ; #? | | ?? " " "?# # ;% ; #? | | ?? " " ??# # ; ; #? | | ?? ? "???# # ;;;;;;;;;;;;;### | | ??? ???# # ; ; # | | ?????????# # ; ; # | | ?????????# ##;; ; # | | ?????????# ; ; | | ?????????# ; @ # | | ?????????##### #;; ; | | ???????????? !! ; # | | ???????????"" h"h; ; | | ??????????? " " ; ; | | ??????????? ; # | | ??????????? | ; ; | | ???????????? ; # | | ?????????????"" ;;;;;;;;;;;;;; | | ??????????????" # # # # | | ??????????????" ###### ####### | | ??????????????"???????# ??????? | | ?????????????????????? ??????? | | ??????????????????????##??????? | | ??????????????????????????????? | | ??????????????????????????????? | | ??????????????????????????????? | | ??????????????????????????????? | | ??????????????????????????????? | | ??????????????????????????????? | | ??????????????????????????????? | | | | | | | | | +----------------------------------------------------+ Best States ------------- Heat Dissipation 43 Coolant Potential 100 Energy Generation 19 Energy Capacity 315 Matter Stores 300 Matter Capacity 300 Sight Range 18 Robot Scan Range 16 Terrain Scan Density 10 Base Temperature (-) 200 Corruption Containment 8 Armor Coverage 225 Resistance: KI 20 Resistance: TH 45 Resistance: EX 20 Resistance: EM 20 Resistance: I 20 Resistance: S 20 Resistance: P 20 Power Shielding 66 Propulsion Shielding 66 Evasion (%) 74 Targeting Accuracy 8 Offensive Hacking 24 Defensive Hacking 23 Item Schematics ----------------- Combat Drone Bay | -7/Data Miner | Free Lgt. Regenerative Plating | -7/Data Miner | Free Cld. Aerolev Unit | -7/Data Miner | Free Gravity Neutralizer | -7/Data Miner | Free Imp. Heavy Laser | -7/Data Miner | Free Nuclear Pulse Array | -7/Data Miner | Free Adv. Drone Bay | -7/Data Miner | Free Imp. Arc Projector | -7/Data Miner | Free Adv. Signal Interpreter | -7/Data Miner | Free Hvy. Phase Cannon | -7/Data Miner | Free Imp. Thermal Shield | -7/Data Miner | Free Imp. Antigrav System | -7/Data Miner | Free Robot Schematics ------------------ B-48 Gladiator | -7/Data Miner | Free I-36 Angel | -7/Data Miner | Free R-10 Processor | -7/Data Miner | Free Fabricated ------------ Nothing Alien Tech Used ----------------- None Achievements -------------- root@ Challenges ------------ None Game ------ Seed ScatterCoreRipper Manual? 0 Play Time 02:06:33 Cumulative 17.8 hours Start 2023.08.07 @ 14:01:15 End 2023.08.07 @ 18:02:55 Sessions 2 Manual Loads 0 Difficulty Adventurer Special Mode None Game No. 10 Rogue 0 Adventurer 10 Explorer 0 Win Type - Total 0 Types 0/0/0/0/0/0/0/0/0 Lore% 38 Gallery% 37 Achievement% 23 Wizard Run 0 Options --------- ASCII 1 Keyboard 0 Movement Numpad Keybinds 0 Fullscreen 1 Font 18/Terminus Map View 76x50 Tactical HUD 1 Map Filters NONE Filters NONE Steam 1 RUN: 3f82aada-783a-45b8-b90d-46695a40d5b6